bitfinex/quotes_ETHUSD_20260313
["timestamp","ask_amount","ask_price","bid_price","bid_amount"]
[1773418843106,1.818,2118.2,2117.5,0.0472255]
[1773418843289,1.1803031,2118.1,2117.5,0.0472255]
[1773418843487,1.1803031,2118.1,2117.0,8.75348207]
[1773418843805,1.1803031,2118.1,2117.5,1.18062356]
[1773418844193,1.1803031,2118.1,2117.4,1.18065341]
[1773418844506,1.1803031,2118.1,2117.5,1.22782873]
[1773418844885,1.82,2118.3,2117.5,1.22782873]
[1773418844886,1.18019166,2118.3,2117.5,1.18060323]
[1773418845408,1.18019166,2118.3,2117.4,4.72272451]
[1773418845409,6.54076665,2118.5,2117.4,4.72272451]
[1773418845785,4.72076665,2118.5,2117.4,4.72272451]
[1773418845989,1.821,2118.4,2117.4,4.72272451]
[1773418846408,1.821,2118.4,2117.3,1.18071349]
[1773418846587,5.754511,2118.4,2117.3,1.18073946]
[1773418846986,5.754511,2118.4,2117.3,1.18072189]
[1773418847313,5.11370266,2118.3,2117.0,1.18091639]
[1773418848014,1.821,2118.2,2117.1,0.04723442]
[1773418848181,5.11370266,2118.3,2117.0,1.18091639]
[1773418848384,1.822,2118.2,2117.1,0.04723442]
[1773418848584,1.822,2118.2,2117.0,1.18091639]
[1773418848783,1.822,2118.2,2117.8,0.0011]
[1773418849180,1.822,2118.1,2117.8,0.0011]
[1773418849420,1.822,2118.0,2117.8,0.0011]
[1773418850008,1.822,2118.1,2117.8,0.0011]
[1773418850184,1.18019166,2118.3,2117.8,0.0011]
[1773418850515,1.18011851,2118.5,2117.8,0.0011]
[1773418850684,4.95984002,2119.2,2117.8,0.0011]
[1773418850685,0.001,2119.4,2117.8,3.88920838]
[1773418850889,1.18061126,2119.4,2118.2,4.20972224]
[1773418851198,0.001,2119.4,2118.4,4.20972224]
[1773418851388,0.001,2119.4,2118.6,4.20972224]
[1773418852432,0.001,2119.6,2118.5,1.18008024]
[1773418852433,8.90977494,2120.6,2118.7,4.20972224]
[1773418852590,3.67981642,2120.7,2118.7,4.20972224]
[1773418852793,1.822,2120.6,2118.8,4.20972224]
[1773418852988,4.19401693,2120.4,2118.8,4.20972224]
[1773418853295,7.87383335,2120.7,2119.2,4.20972224]
[1773418854095,1.822,2120.6,2119.2,4.20972224]
[1773418854799,9.69583335,2120.7,2119.2,4.20972224]
[1773418855320,9.69583335,2120.7,2119.4,4.20972224]
[1773418855321,3.00085603,2120.7,2119.4,4.20972224]
[1773418855495,1.17885603,2120.7,2119.4,4.20972224]
[1773418856310,5.37287296,2120.7,2119.4,4.20972224]
[1773418856994,4.19401693,2120.6,2119.4,4.20972224]
[1773418857622,1.17896722,2120.5,2119.4,5.38929062]
[1773418857826,3.00096722,2120.5,2119.4,5.38929062]
[1773418858495,1.17896722,2120.5,2119.4,5.38929062]
[1773418858697,1.822,2120.5,2119.5,4.20972224]
[1773418859397,4.71534623,2120.8,2119.5,4.20972224]
[1773418859594,4.71534623,2120.8,2119.6,5.38919006]
[1773418860227,1.822,2120.7,2119.6,5.38919006]
[1773418860426,4.19401693,2120.6,2119.1,5.38946835]
[1773418860591,4.19401693,2120.6,2119.2,4.20972224]
[1773418860794,1.822,2120.7,2119.2,4.20972224]
[1773418860795,6.11294172,2120.5,2119.2,4.20972224]
[1773418860994,4.19401693,2120.4,2119.3,0.04718539]
[1773418861223,4.19401693,2120.0,2118.4,4.20972224]
[1773418861406,4.19401693,2120.0,2118.3,1.18019166]
[1773418861407,1.822,2119.9,2118.5,4.20972224]
[1773418861602,4.19401693,2119.5,2118.0,0.0011]
[1773418861801,2.50096039,2119.6,2118.0,0.0011]
[1773418861802,4.19401693,2119.2,2118.0,1.18143176]
[1773418862006,1.822,2119.1,2118.1,0.04721212]
[1773418862410,6.01601693,2119.1,2118.0,0.0011]
[1773418862615,4.19401693,2119.0,2118.0,0.0011]
[1773418863012,4.19401693,2119.0,2118.0,1.18145694]
[1773418863203,1.822,2118.9,2118.1,0.04721212]
[1773418863415,7.93494172,2118.9,2118.0,0.0011]
[1773418863617,5.37393008,2118.8,2118.0,0.0011]
[1773418863938,1.822,2118.7,2118.0,0.0011]
[1773418864823,5.37393008,2118.8,2118.0,0.0011]
[1773418865122,1.822,2118.7,2118.0,0.0011]
[1773418865327,1.821,2118.6,2118.0,0.0011]
[1773418865524,1.18008024,2118.5,2118.0,0.0011]
[1773418866320,5.37370737,2119.2,2118.0,0.0011]
[1773418866721,4.19401693,2119.1,2118.0,0.0011]
[1773418866928,6.11294172,2118.9,2118.0,0.0011]
[1773418867102,4.19401693,2118.9,2118.0,0.0011]
[1773418867299,4.19401693,2118.7,2118.0,0.0011]
[1773418867523,4.19401693,2118.7,2117.8,0.0011]
[1773418867824,1.18002454,2118.6,2117.8,0.0011]
[1773418868728,4.19401693,2119.1,2117.8,0.0011]
[1773418868911,3.00080179,2119.0,2117.8,4.21082224]
[1773418869111,8.91217501,2119.5,2117.9,4.25693882]
[1773418869309,3.00057912,2119.4,2117.9,4.20972224]
[1773418869531,4.19401693,2119.3,2117.9,4.20972224]
[1773418869712,5.37376304,2119.1,2117.9,1.18037557]
[1773418870625,1.82,2119.0,2118.0,0.04721435]
[1773418871012,1.82,2119.0,2117.9,1.18037557]
[1773418871704,1.17985747,2118.9,2117.8,5.39126359]
[1773418873532,5.3738744,2118.9,2118.0,0.0011]
[1773418873728,1.17985747,2118.9,2118.0,0.0011]
[1773418874615,1.817,2118.8,2118.0,0.0011]
[1773418875729,1.817,2118.7,2118.0,0.0011]
[1773418876841,1.817,2118.7,2117.8,0.0011]
[1773418876842,4.19401693,2118.6,2117.8,0.0011]
[1773418877837,4.71942989,2119.1,2117.8,0.0011]
[1773418877838,1.17963478,2119.3,2117.8,4.21082224]
[1773418878041,2.99463478,2119.3,2117.9,4.25693882]
[1773418878231,1.17963478,2119.3,2117.9,4.25693882]
[1773418878935,1.18058477,2119.4,2118.3,4.20972224]
[1773418879136,1.18058477,2119.4,2118.2,2.48451547]
[1773418879137,3.00984039,2119.4,2118.2,2.48451547]
[1773418879337,7.20385732,2119.4,2117.9,4.20972224]
[1773418879546,4.19401693,2119.3,2117.9,4.25693882]
[1773418879836,1.17969044,2119.2,2118.0,1.18035882]
[1773418880037,1.17969044,2119.2,2118.1,0.04721212]
[1773418880530,1.17969044,2119.2,2118.0,1.18035882]
[1773418880912,1.17969044,2119.2,2118.0,4.91294984]
[1773418881313,5.63948932,2119.1,2117.9,1.18038096]
[1773418881615,1.813,2119.0,2117.9,1.18038096]
[1773418881818,1.17991315,2118.8,2117.8,0.0011]
[1773418883040,6.81940247,2118.8,2117.8,0.0011]
[1773418883232,3.8102337,2118.7,2117.8,0.0011]
[1773418883430,1.17991315,2118.8,2117.8,0.0011]
[1773418885144,1.82925562,2118.6,2117.8,0.0011]
[1773418885338,5.63948932,2118.6,2117.8,0.0011]
[1773418885929,3.8102337,2118.5,2118.0,0.0011]
[1773418886131,1.18013595,2118.4,2117.8,0.0011]
[1773418886332,1.811,2118.3,2117.8,0.0011]
[1773418886649,1.18013595,2118.4,2117.8,0.0011]
[1773418886840,2.99113595,2118.4,2117.8,0.0011]
[1773418887041,1.18013595,2118.4,2117.8,0.0011]
[1773418888548,1.82925562,2117.9,2116.8,1.18100008]
[1773418888726,3.8102337,2118.1,2116.9,1.18096733]
[1773418888727,1.811,2117.8,2116.9,1.18096733]
[1773418888926,1.811,2117.8,2117.1,1.18081709]
[1773418889645,1.811,2117.8,2117.0,1.18087935]
[1773418889845,1.811,2117.8,2117.1,1.18084863]
[1773418890050,1.811,2117.8,2117.1,4.72342655]
[1773418890250,1.18013595,2118.4,2117.4,3.73259102]
[1773418890551,1.82925562,2118.9,2117.4,3.73259102]
[1773418890552,1.17980179,2119.0,2117.6,3.73259102]
[1773418891222,1.82925562,2118.7,2117.6,3.73259102]
[1773418891418,1.17980179,2119.0,2117.6,3.73259102]
[1773418891629,1.82925562,2118.7,2117.4,1.18065708]
[1773418891829,5.63948932,2118.7,2117.3,1.18183706]
[1773418892033,3.8102337,2118.6,2117.3,1.18183706]
[1773418892247,1.811,2118.5,2117.3,1.18184549]
[1773418892554,1.18013595,2118.4,2117.3,1.18184549]
[1773418892720,6.81962527,2118.4,2117.3,0.0011]
[1773418894344,1.811,2118.3,2117.3,0.0011]
[1773418894732,1.18024737,2118.2,2117.3,0.0011]
[1773418895254,3.63925562,2118.1,2117.3,0.0011]
[1773418895452,1.82925562,2117.8,2116.7,4.91367102]
[1773418896153,3.8102337,2118.0,2116.8,3.73259102]
[1773418897647,1.18041456,2117.9,2116.8,4.91360504]
[1773418898055,1.18041456,2117.9,2116.9,3.73259102]
[1773418898056,2.99041456,2117.9,2116.9,3.73259102]
[1773418898430,2.99041456,2117.9,2117.5,0.0011]
[1773418899453,1.18041456,2117.9,2117.5,0.0011]
[1773418899651,0.001,2118.0,2117.5,0.0011]
[1773418899832,1.811,2118.0,2117.5,0.0011]
[1773418900234,5.6212337,2118.0,2117.3,0.0011]
[1773418900637,1.81,2117.9,2117.3,0.0011]
[1773418901626,1.18047029,2117.8,2117.3,0.0011]
[1773418902232,1.18047029,2117.8,2116.7,4.7238887]
[1773418902233,3.8102337,2117.1,2115.9,1.18148993]
[1773418902467,3.8102337,2117.1,2116.1,0.0011]
[1773418902653,1.18047029,2117.8,2116.4,3.73259102]
[1773418902654,4.99070399,2117.8,2116.4,3.73259102]
[1773418903043,4.99070399,2117.8,2116.1,1.18250955]
[1773418903044,3.8102337,2117.3,2116.1,0.0011]
[1773418903358,1.82925562,2117.1,2116.1,1.18251632]
[1773418903553,1.18080483,2117.2,2116.1,1.1825177]
[1773418903734,1.18080483,2117.2,2116.1,0.0011]
[1773418903935,1.18080483,2117.2,2116.0,4.91514865]
[1773418903936,3.8102337,2116.8,2116.0,0.0011]
[1773418904162,6.53511393,2116.7,2115.6,0.0011]
[1773418904487,5.6212337,2116.7,2115.7,1.18163943]
[1773418904636,5.6212337,2116.7,2115.8,1.18265946]
[1773418904838,2.17990419,2117.1,2115.8,4.91525048]
[1773418904839,1.812,2117.0,2115.8,4.91525048]
[1773418905135,2.721088,2116.9,2115.8,4.91526764]
[1773418905356,2.721088,2116.9,2115.9,3.79603725]
[1773418905731,2.721088,2116.9,2115.9,4.97751943]
[1773418905732,1.18102796,2116.8,2115.9,4.97751943]
[1773418906071,4.99112733,2117.1,2115.9,4.97751943]
[1773418906246,1.18088544,2117.1,2116.0,3.79603725]
[1773418906883,2.17990419,2117.7,2116.1,2.72100881]
[1773418907099,1.18045125,2117.9,2116.6,3.79603725]
[1773418907260,1.18033146,2118.1,2116.7,3.79603725]
[1773418907580,1.18033444,2118.1,2116.7,3.79603725]
[1773418907781,3.91042186,2118.7,2116.9,3.79603725]
[1773418907971,1.18021902,2118.3,2116.9,3.79603725]
[1773418908797,3.00947464,2118.3,2116.9,3.79603725]
[1773418908951,1.83025562,2118.0,2116.9,3.79603725]
[1773418909279,0.001,2118.0,2116.9,3.79603725]
[1773418909744,0.001,2118.0,2117.1,3.79603725]
[1773418910875,1.18010606,2118.5,2117.3,0.0011]
[1773418911058,1.17991315,2118.8,2117.4,3.7464396]
[1773418911450,2.72312772,2118.7,2117.4,3.7464396]
[1773418911646,1.17991315,2118.8,2117.4,3.7464396]
[1773418912247,1.17991315,2118.8,2117.6,3.7464396]
[1773418913067,1.18075754,2119.1,2117.6,3.7464396]
[1773418913266,2.72340797,2119.0,2117.6,3.7464396]
[1773418913687,0.001,2119.4,2118.0,3.7464396]
[1773418913981,7.82623386,2120.3,2117.6,1.92091351]
[1773418913982,1.17928671,2120.0,2118.5,3.7464396]
[1773418914279,1.17913404,2120.2,2118.9,3.7464396]
[1773418914856,5.16357309,2120.2,2118.9,3.7464396]
[1773418915476,1.17913404,2120.2,2118.9,3.7464396]
[1773418916459,1.17913404,2120.2,2119.0,1.17980179]
[1773418916887,1.17913404,2120.2,2119.0,4.92624139]
[1773418917180,1.17913404,2120.2,2119.1,3.7464396]
[1773418917979,1.17913404,2120.2,2118.9,1.17983462]
[1773418918180,5.16357309,2120.2,2118.9,1.17983462]
[1773418918598,1.17913404,2120.2,2118.9,3.7464396]
[1773418918979,3.98443905,2120.1,2118.8,1.17991315]
[1773418919191,3.98443905,2120.1,2118.6,1.1799917]
[1773418920298,6.47491124,2119.9,2118.5,4.92647796]
[1773418920500,1.17941218,2119.7,2118.5,4.92647796]
[1773418920858,1.17918966,2120.1,2118.8,3.7464396]
[1773418921096,1.17918966,2120.1,2118.9,3.7464396]
[1773418921304,1.1791701,2120.2,2118.9,3.7464396]
[1773418921810,0.001,2120.9,2119.2,3.7464396]
[1773418921971,1.17974999,2120.9,2119.7,3.7464396]
[1773418922315,1.17843971,2121.5,2119.9,3.7464396]
[1773418922618,1.17830041,2121.7,2120.3,3.7464396]
[1773418922770,5.16273946,2121.7,2120.3,3.7464396]
[1773418922971,3.98443905,2121.6,2120.3,3.7464396]
[1773418923670,3.98443905,2121.6,2120.0,2.61424528]
[1773418923671,3.98443905,2121.6,2120.0,1.17924528]
[1773418924094,3.98443905,2121.5,2120.0,1.17924528]
[1773418924313,4.963,2121.4,2120.0,1.17924528]
[1773418924473,1.17846705,2121.4,2120.0,4.92568488]
[1773418924678,1.17846705,2121.4,2120.1,3.7464396]
[1773418924929,3.98443905,2121.3,2119.8,1.17935654]
[1773418925290,3.98443905,2121.3,2119.8,4.92579614]
[1773418925513,3.98443905,2121.3,2119.9,3.7464396]
[1773418926507,3.98443905,2121.3,2119.7,4.71744251]
[1773418926508,3.98443905,2121.1,2119.7,4.717575]
[1773418926707,3.98443905,2121.1,2119.8,0.04717426]
[1773418927015,3.98443905,2121.1,2119.7,8.4640146]
[1773418927209,3.98443905,2121.1,2119.7,3.7464396]
[1773418927409,3.98443905,2121.1,2119.8,3.79361386]
[1773418927609,1.17857816,2121.2,2119.8,3.79361386]
[1773418927988,1.17857816,2121.2,2119.8,3.7464396]
[1773418928721,5.16301721,2121.2,2119.9,1.17930091]
[1773418929025,5.16301721,2121.2,2119.8,4.92576053]
[1773418929220,3.98443905,2121.1,2119.8,4.92579272]
[1773418929817,3.98443905,2121.1,2119.8,4.92579307]
[1773418930223,3.98443905,2121.1,2119.9,0.04717203]
[1773418930417,1.17857816,2121.2,2119.9,3.79361163]
[1773418930832,3.98443905,2121.3,2120.1,3.7464396]
[1773418931007,3.98443905,2121.2,2119.7,8.46403928]
[1773418931391,3.98443905,2121.2,2119.8,3.7464396]
[1773418931597,0.23242654,2121.4,2119.8,3.7464396]
[1773418931905,4.71431265,2121.5,2119.8,3.7464396]
[1773418932102,1.82400698,2121.2,2119.8,3.7464396]
[1773418932297,3.98443905,2121.3,2119.8,5.1874396]
[1773418932493,3.98443905,2121.3,2119.9,3.79361163]
[1773418932797,3.98443905,2121.1,2119.9,4.92569765]
[1773418933007,3.98443905,2121.1,2119.9,1.17925805]
[1773418933328,3.98443905,2121.1,2119.7,1.17941218]
[1773418933698,1.17857816,2121.2,2119.7,1.17941218]
[1773418933699,5.8098425,2120.9,2119.7,1.17941218]
[1773418933898,5.8098425,2120.9,2119.6,3.87739704]
[1773418933899,3.98443905,2120.8,2119.6,3.87739704]
[1773418934107,3.98443905,2120.8,2119.6,1.17943121]
[1773418935003,3.98443905,2120.8,2119.3,6.16053808]
[1773418935004,1.82540345,2120.3,2119.4,1.17954267]
[1773418935213,3.98443905,2120.6,2119.5,0.04718093]
[1773418935541,3.00785603,2120.7,2119.5,3.79362053]
[1773418935699,3.00785603,2120.7,2119.7,3.7464396]
[1773418935700,1.17885603,2120.7,2119.7,3.7464396]
[1773418935897,4.71514422,2120.9,2119.8,3.79361386]
[1773418936307,4.71514422,2120.9,2119.8,3.7464396]
[1773418936940,5.8098425,2120.6,2119.4,4.92598227]
[1773418937105,3.98443905,2120.3,2120.0,0.0011]
[1773418937437,3.00796722,2120.5,2119.1,1.17974611]
[1773418937438,3.00796722,2120.5,2119.2,3.7464396]
[1773418937729,9.67886889,2120.7,2119.8,0.0011]
[1773418937730,4.7154937,2120.7,2119.8,0.0011]
[1773418938242,3.98443905,2120.6,2119.8,0.0011]
[1773418938608,3.98443905,2120.5,2119.8,0.0011]
[1773418938828,1.83,2120.6,2119.8,0.0011]
[1773418939029,1.17885603,2120.7,2119.8,0.0011]
[1773418939244,1.17874487,2120.9,2119.8,0.0011]
[1773418939413,1.17871452,2121.0,2119.8,3.7475396]
[1773418939807,1.17966486,2121.1,2119.8,3.7475396]
[1773418940005,0.001,2121.1,2119.8,3.7475396]
[1773418940205,1.1796433,2121.1,2119.9,3.7464396]
[1773418941330,1.1784115,2121.5,2120.1,3.7054525]
[1773418941531,1.17812113,2122.1,2120.6,3.7054525]
[1773418941709,1.17812113,2122.1,2120.8,3.7054525]
[1773418943333,4.71231327,2122.3,2120.9,1.17874487]
[1773418943520,4.71231327,2122.3,2121.0,3.7054525]
[1773418944040,8.62350789,2122.3,2121.0,3.7054525]
[1773418945236,1.831,2122.2,2121.0,3.7054525]
[1773418945437,1.17807831,2122.1,2121.0,1.17867968]
[1773418945740,1.17807831,2122.1,2120.9,4.71495708]
[1773418945741,1.831,2122.2,2120.9,3.7054525]
[1773418945921,3.97673062,2122.6,2120.7,1.91556319]
[1773418945922,1.1778563,2122.5,2121.1,3.7054525]
[1773418946537,5.08903694,2122.6,2121.1,3.7054525]
[1773418946909,1.17784232,2122.6,2121.3,3.7054525]
[1773418947534,1.17784232,2122.6,2121.4,1.17846705]
[1773418948535,1.17784232,2122.6,2121.4,4.88391955]
[1773418950421,0.001,2122.4,2121.4,4.88391955]
[1773418950818,3.91119462,2122.2,2121.0,3.7054525]
[1773418951128,3.91119462,2122.2,2120.5,3.7054525]
[1773418951307,3.91119462,2121.7,2120.4,1.9766318]
[1773418951634,5.74519462,2121.6,2120.5,0.04715868]
[1773418951935,5.08960612,2121.5,2120.4,0.79763757]
[1773418952138,3.91119462,2121.4,2120.1,6.33063333]
[1773418952317,3.91119462,2121.4,2120.0,1.18030835]
[1773418952641,3.91119462,2121.4,2120.0,1.18033449]
[1773418952840,3.91119462,2121.4,2120.0,1.18033545]
[1773418953015,3.91119462,2121.4,2120.1,0.04716758]
[1773418953336,3.91119462,2121.2,2120.0,0.04826981]
[1773418953553,3.91119462,2121.2,2120.1,0.04716758]
[1773418953836,3.91119462,2121.2,2120.0,1.1803303]
[1773418953837,3.91119462,2121.2,2120.0,0.0011]
[1773418954016,3.91119462,2121.0,2120.0,0.0011]
[1773418954218,5.74519462,2120.9,2120.0,0.0011]
[1773418954416,3.91119462,2120.8,2120.0,0.0011]
[1773418955533,1.17863372,2121.1,2120.0,0.0011]
[1773418955737,1.834,2120.9,2120.0,0.0011]
[1773418955937,1.17880045,2120.8,2120.0,0.0011]
[1773418956316,1.17880045,2120.8,2120.0,0.04826981]
[1773418956954,1.17880045,2120.8,2120.0,0.0011]
[1773418957247,3.91119462,2120.7,2119.8,0.0011]
[1773418957628,1.17880045,2120.8,2119.8,0.0011]
[1773418957629,3.91119462,2120.5,2119.8,0.0011]
[1773418958048,3.91119462,2120.5,2119.5,1e-08]
[1773418958049,3.91119462,2120.3,2119.5,1e-08]
[1773418958226,1.833,2120.2,2119.5,1e-08]
[1773418958554,1.17902282,2120.4,2119.5,1e-08]
[1773418958716,1.17902282,2120.4,2119.5,3.70545251]
[1773418958916,1.17900995,2120.5,2119.6,0.04717871]
[1773418959246,3.01200995,2120.5,2119.6,0.04717871]
[1773418959818,3.91119462,2120.4,2119.5,1e-08]
[1773418960019,1.17907843,2120.3,2119.5,1e-08]
[1773418960218,1.17907843,2120.3,2119.5,0.04718094]
[1773418960555,1.17907843,2120.3,2119.5,1e-08]
[1773418961130,1.17891162,2120.6,2119.5,3.70545251]
[1773418961337,1.17891162,2120.6,2119.6,0.04717871]
[1773418962053,1.832,2120.9,2119.8,3.7054525]
[1773418962251,8.62595181,2121.1,2120.0,3.7054525]
[1773418962422,8.62595181,2121.1,2120.1,0.04716758]
[1773418962423,3.91119462,2121.0,2120.1,0.04716758]
[1773418962750,3.91119462,2121.0,2119.8,0.04717426]
[1773418962953,0.001,2120.6,2119.8,0.04717426]
[1773418963131,0.001,2120.6,2119.7,0.04827648]
[1773418963330,1.832,2120.6,2119.7,0.0011]
[1773418963520,5.74319462,2120.6,2119.7,0.0011]
[1773418963720,5.74319462,2120.6,2119.7,0.04827648]
[1773418963951,1.17896722,2120.5,2119.8,1.17935654]
[1773418964155,1.17896722,2120.5,2119.7,4.76570265]
[1773418964156,3.91119462,2120.4,2119.7,0.0011]
[1773418964820,3.91119462,2120.4,2119.7,1.18051069]
[1773418965141,4.71665896,2120.6,2119.7,1.22768717]
[1773418965335,1.17993353,2120.6,2119.7,1.22768717]
[1773418965855,1.17993353,2120.6,2119.7,4.88397835]
[1773418966329,0.001,2120.6,2119.7,4.88397835]
[1773418966641,1.17991214,2120.6,2119.7,4.83680187]
[1773418966841,1.17991214,2120.6,2119.8,3.70346544]
[1773418967153,0.001,2120.6,2119.8,3.70346544]
[1773418967335,1.17991263,2120.6,2119.8,3.70346544]
[1773418968229,1.17991263,2120.6,2119.7,1.18051069]
[1773418968230,0.001,2120.6,2119.7,0.0011]
[1773418968433,3.86176373,2120.6,2119.7,0.0011]
[1773418968637,1.827,2120.5,2119.7,0.0011]
[1773418969357,5.68776373,2120.5,2119.7,0.0011]
[1773418970360,1.17902282,2120.4,2119.7,0.0011]
[1773418971376,3.59539901,2120.2,2119.5,1e-08]
[1773418971661,3.59539901,2120.2,2119.2,0.0011]
[1773418971868,3.59539901,2120.0,2119.2,0.0011]
[1773418972151,1.824,2119.9,2119.2,0.0011]
[1773418972325,1.824,2119.9,2119.2,0.04828761]
[1773418972726,1.17935654,2119.8,2119.2,0.04828761]
[1773418973154,1.17935654,2119.8,2119.2,0.0011]
[1773418974230,4.77475555,2119.8,2119.2,0.0011]
[1773418974560,3.59539901,2119.7,2119.2,0.0011]
[1773418974757,1.17946782,2119.6,2119.2,0.0011]
[1773418975059,4.77486683,2119.6,2118.3,1.18019166]
[1773418975262,4.77486683,2119.6,2118.2,8.50701865]
[1773418975263,3.59539901,2119.5,2118.2,4.96635478]
[1773418975644,3.59539901,2119.5,2119.1,0.0011]
[1773418975960,3.59539901,2119.5,2118.9,0.0011]
[1773418976168,3.59539901,2119.3,2117.9,4.72151169]
[1773418976327,5.41639901,2119.2,2117.9,4.72151169]
[1773418976734,3.00074611,2119.1,2118.1,4.96642154]
[1773418976928,1.821,2119.3,2118.2,3.83332833]
[1773418977133,1.821,2119.3,2118.2,3.78611844]
[1773418977564,4.94979914,2119.8,2118.4,3.78611844]
[1773418977862,1.821,2119.6,2118.4,3.78611844]
[1773418978048,1.821,2119.6,2118.5,0.0472032]
[1773418978049,5.41639901,2119.6,2118.5,0.0472032]
[1773418978746,2.99952347,2119.5,2118.6,1.18002454]
[1773418978944,2.99952347,2119.5,2118.7,0.04719875]
[1773418979460,2.99952347,2119.5,2118.4,1.18008186]
[1773418979764,2.99952347,2119.5,2118.5,0.0472032]
[1773418979940,2.99952347,2119.5,2118.5,3.83332164]
[1773418979941,1.82,2119.4,2118.5,3.83332164]
[1773418980354,1.82,2119.4,2118.5,3.78611844]
[1773418980857,1.1794927,2119.6,2118.7,3.78611844]
[1773418980858,1.17946782,2119.6,2118.7,3.78611844]
[1773418981162,1.17913404,2120.2,2118.9,3.78611844]
[1773418982759,1.17924528,2120.0,2119.0,1.17980179]
[1773418983448,1.17924528,2120.0,2118.9,4.96594266]
[1773418984663,1.17924528,2120.0,2119.0,3.78611844]
[1773418984910,4.71698113,2120.1,2119.0,4.965898]
[1773418985359,8.31238014,2120.1,2119.0,4.965898]
[1773418985532,8.31238014,2120.1,2119.0,3.78611844]
[1773418985738,8.31238014,2120.1,2118.7,4.71979504]
[1773418985739,1.82658467,2120.0,2118.7,4.71979504]
[1773418985955,8.31238014,2120.1,2118.8,3.78611844]
[1773418985956,10.13038014,2120.1,2118.8,3.78611844]
[1773418986559,1.818,2120.0,2118.8,3.78611844]
[1773418986759,1.17916158,2120.2,2119.0,1.17980179]
[1773418987075,1.17916158,2120.2,2119.1,3.78611844]
[1773418987946,1.17916158,2120.2,2119.2,0.0011]
[1773418988346,2.99616158,2120.2,2119.2,0.0011]
[1773418988760,2.99616158,2120.2,2119.2,3.78721844]
[1773418988956,2.99616158,2120.2,2119.3,1.17963478]
[1773418989154,1.17916158,2120.2,2119.3,1.17963478]
[1773418989359,0.001,2120.3,2119.4,3.78611844]
[1773418989558,1.18010148,2120.3,2119.4,3.78611844]
[1773418990247,1.17904548,2120.4,2119.4,3.78611844]
[1773418990589,0.001,2120.6,2119.5,3.78611844]
[1773418990791,0.23883426,2120.9,2119.9,3.78611844]
[1773418990947,10.12506843,2121.5,2120.2,3.78611844]
[1773418990948,1.17846705,2121.4,2120.2,3.78611844]
[1773418991169,2.99333951,2121.7,2120.2,3.78611844]
[1773418991597,1.17833951,2121.7,2120.4,3.78611844]
[1773418992268,5.42198368,2121.6,2120.4,3.78611844]
[1773418992468,1.17833951,2121.7,2120.4,3.78611844]
[1773418992676,1.82658467,2121.6,2120.1,2.62401606]
[1773418992914,1.17846705,2121.4,2120.2,1.17913404]
[1773418993217,2.99246705,2121.4,2120.2,3.78611844]
[1773418993366,3.59539901,2121.2,2119.8,4.96545649]
[1773418993691,3.59539901,2120.9,2119.4,3.78611844]
[1773418994191,3.05800305,2121.4,2119.4,3.78611844]
[1773418994192,3.59539901,2121.3,2119.4,3.78611844]
[1773418994393,5.40839901,2120.9,2119.4,3.78611844]
[1773418994565,5.42198368,2120.8,2119.4,3.78611844]
[1773418995069,1.17885603,2120.7,2119.5,1.17952347]
[1773418995485,4.77425504,2120.7,2119.5,1.17952347]
[1773418995684,1.812,2120.6,2119.5,1.17952347]
[1773418995890,3.59539901,2120.5,2119.4,1.17957641]
[1773418996582,1.812,2120.6,2119.4,4.96569485]
[1773418996788,1.17885603,2120.7,2119.5,3.78611844]
[1773418997180,1.17885603,2120.7,2119.6,1.17946782]
[1773418997379,1.17885603,2120.7,2119.7,3.78611844]
[1773418997998,1.17885603,2120.7,2119.6,1.17946782]
[1773418998270,1.17885603,2120.7,2119.6,4.96558626]
[1773418998797,1.17863372,2121.1,2119.7,3.78611844]
[1773418998999,2.98862089,2121.2,2119.8,6.33164344]
[1773418999198,1.17862089,2121.2,2120.1,3.78611844]
[1773418999382,1.17862089,2121.2,2120.2,3.78611844]
[1773418999783,1.17862089,2121.2,2120.1,2.62401606]
[1773418999994,1.17862089,2121.2,2120.0,1.17924528]
[1773419000185,4.7740199,2121.2,2119.8,4.96543475]
[1773419000589,4.7740199,2121.2,2119.9,3.78611844]
[1773419000774,6.5830199,2121.2,2119.9,3.78611844]
[1773419001170,6.5830199,2121.2,2120.0,1.17924528]
[1773419001598,8.40850086,2121.2,2119.9,4.96537766]
[1773419002104,8.40850086,2121.2,2120.0,0.04716981]
[1773419002311,1.808,2121.1,2120.0,0.04716981]
[1773419002696,1.808,2121.1,2120.0,3.76020157]
[1773419002895,1.17862089,2121.2,2120.0,3.76020157]
[1773419003206,1.17862089,2121.2,2120.1,1.17918966]
[1773419003401,1.17862089,2121.2,2120.2,0.04716536]
[1773419003588,2.98562089,2121.2,2120.2,0.04716536]
[1773419003784,8.40388444,2121.6,2120.3,3.71303176]
[1773419003979,1.1784115,2121.5,2120.4,3.76019267]
[1773419005408,2.98424488,2121.8,2120.6,3.71303176]
[1773419005805,8.50017268,2121.8,2120.6,3.71303176]
[1773419006483,2.98324488,2121.8,2120.6,3.76018822]
[1773419006690,1.17824488,2121.8,2120.6,3.71303176]
[1773419006897,1.804,2121.7,2120.6,3.71303176]
[1773419007439,1.17824488,2121.8,2120.7,4.89188779]
[1773419011121,1.17807831,2122.1,2121.0,3.71303176]
[1773419011312,4.86852515,2122.1,2121.0,3.71303176]
[1773419011618,1.17807831,2122.1,2120.9,3.76018155]
[1773419011995,1.17807831,2122.1,2120.9,3.71303176]
[1773419012293,3.69044684,2122.2,2121.1,3.71303176]
[1773419012496,3.69044684,2122.2,2120.8,3.3799]
[1773419012697,0.001,2121.9,2120.9,3.76018155]
[1773419012905,0.001,2121.9,2120.9,3.71303176]
[1773419013596,0.001,2121.9,2121.0,1.22583686]
[1773419014116,0.001,2121.9,2121.0,4.89172105]
[1773419014319,0.001,2121.9,2121.0,1.22583686]
[1773419014944,0.001,2121.9,2121.0,1.17868929]
[1773419015290,0.001,2121.9,2120.9,1.17870775]
[1773419016320,0.001,2121.9,2121.0,0.04714757]
[1773419017319,0.001,2121.9,2121.0,3.76017933]
[1773419017923,0.001,2121.9,2121.2,3.71303176]
[1773419020218,0.001,2121.9,2121.3,4.89155436]
[1773419021021,0.001,2121.9,2120.9,4.71453491]
[1773419021022,0.001,2121.9,2120.9,3.71303176]
[1773419021197,0.001,2121.9,2120.9,4.89176145]
[1773419021198,3.69144684,2121.9,2120.9,4.89176145]
[1773419021516,0.001,2121.9,2121.0,3.71303176]
[1773419021706,0.001,2121.9,2120.9,1.17872969]
[1773419022447,1.17918935,2121.9,2121.0,0.04714757]
[1773419022817,1.17918935,2121.9,2120.9,3.71303176]
[1773419023722,1.17918935,2121.9,2121.0,0.04714757]